bitfinex-derivatives/quotes_SOLF0:USTF0_20241026
["timestamp","ask_amount","ask_price","bid_price","bid_amount"]
[1729956054383,2.96,169.11,169.07,15.75503326]
[1729956055193,5.32,169.14,169.07,12.79443326]
[1729956055386,2.96,169.12,169.08,2.9605]
[1729956056089,2.9596,169.14,169.09,12.79443326]
[1729956056289,2.9596,169.14,169.09,20.47409244]
[1729956056493,5.32,169.19,169.1,2.463]
[1729956056689,2.9591,169.17,169.11,2.9599]
[1729956056888,5.32,169.19,169.1,2.463]
[1729956057091,5.32,169.2,169.1,2.463]
[1729956057491,5.32,169.21,169.12,20.47409244]
[1729956058388,5.32,169.21,169.13,2.9595]
[1729956058687,5.32,169.21,169.1,2.463]
[1729956058688,20.47409244,169.2,169.1,2.463]
[1729956059292,2.959,169.17,169.1,2.463]
[1729956059486,20.47409244,169.2,169.1,2.463]
[1729956059889,2.9596,169.14,169.1,2.463]
[1729956060293,5.32,169.18,169.1,2.463]
[1729956061395,5.32,169.21,169.1,2.463]
[1729956062185,2.9604,169.09,169.07,20.47409244]
[1729956062491,5.32,169.16,169.07,20.47409244]
[1729956062687,5.32,169.16,169.09,2.9603]
[1729956062688,2.9596,169.14,169.09,2.9603]
[1729956062887,5.32,169.16,169.08,2.5176]
[1729956063189,2.9586,169.19,169.12,2.9598]
[1729956063389,20.47409244,169.29,169.12,2.9598]
[1729956063390,264.44165781,169.31,169.12,20.47409244]
[1729956063586,5.32,169.26,169.14,20.47409244]
[1729956063795,5.32,169.26,169.15,1.2137]
[1729956064298,2.9585,169.2,169.15,4.1729]
[1729956065291,2.9587,169.19,169.15,1.2137]
[1729956065890,5.32,169.24,169.15,1.2137]
[1729956066091,2.9589,169.18,169.15,1.2137]
[1729956067892,25.79409244,169.19,169.08,2.5176]
[1729956068091,20.47409244,169.16,169.08,2.5176]
[1729956068398,20.47409244,169.17,169.05,6.5491]
[1729956068696,20.47409244,169.17,169.06,2.9609]
[1729956068697,2.9602,169.1,169.06,2.9609]
[1729956068995,2.9603,169.1,169.05,4.1902]
[1729956069291,20.47409244,169.15,169.05,1.2291]
[1729956069492,20.47409244,169.15,169.04,1.2368]
[1729956069493,2.9605,169.08,169.04,1.2368]
[1729956069687,5.32,169.13,169.04,1.2368]
[1729956070796,5.32,169.13,169.04,4.1979]
[1729956071191,5.32,169.13,169.04,4.198]
[1729956071393,5.32,169.13,169.02,5.32]
[1729956071596,20.47409244,169.12,169.02,5.32]
[1729956071809,2.9608,169.07,169.02,5.32]
[1729956072096,20.47409244,169.12,169.01,20.47409244]
[1729956072298,20.47409244,169.12,169.01,23.43569244]
[1729956072299,2.9608,169.07,169.01,23.43569244]
[1729956072693,2.9608,169.07,169.01,20.47409244]
[1729956072889,20.47409244,169.12,168.99,1.2097]
[1729956073093,2.9614,169.03,168.99,1.2097]
[1729956073294,5.32,169.11,168.99,1.2097]
[1729956073491,20.47409244,169.1,168.99,1.2097]
[1729956073699,2.961,169.06,169.01,2.9616]
[1729956073999,20.47409244,169.1,168.99,1.2097]
[1729956074392,2.9612,169.05,168.99,1.2097]
[1729956074594,5.32,169.11,169.0,20.47409244]
[1729956074802,20.47409244,169.13,168.99,1.2097]
[1729956074989,20.47409244,169.08,168.98,1.2291]
[1729956075185,5.32,169.07,168.98,1.2291]
[1729956075386,2.9612,169.05,168.98,1.2291]
[1729956075594,5.32,169.07,168.99,20.47409244]
[1729956075785,5.32,169.1,168.99,20.47409244]
[1729956076199,2.9608,169.07,169.02,2.9614]
[1729956076400,5.3,169.11,168.99,20.47409244]
[1729956076697,2.9605,169.09,169.02,2.9615]
[1729956076996,2.9605,169.09,168.99,20.47409244]
[1729956077197,2.9607,169.07,169.02,2.9615]
[1729956077904,2.9606,169.08,169.02,2.9615]
[1729956078201,5.3,169.11,169.02,20.47409244]
[1729956078505,2.9602,169.1,169.02,25.77409244]
[1729956078693,2.9602,169.1,169.03,1.2273]
[1729956079397,2.9602,169.1,169.05,2.9609]
[1729956079705,5.3,169.11,169.03,1.2273]
[1729956079896,5.3,169.11,169.02,5.3]
[1729956080293,5.3,169.11,168.99,25.77409244]
[1729956080487,2.9609,169.07,169.02,2.9616]
[1729956080688,5.3,169.11,168.99,25.77409244]
[1729956081097,5.3,169.11,169.02,20.47409244]
[1729956081500,2.9605,169.09,169.04,2.9611]
[1729956081798,5.3,169.11,169.04,2.9611]
[1729956082099,2.9605,169.09,169.04,2.9611]
[1729956082689,5.3,169.11,169.04,20.47409244]
[1729956082895,5.3,169.14,169.04,20.47409244]
[1729956083200,2.9599,169.12,169.07,2.9606]
[1729956083503,57.52,169.16,169.07,20.47409244]
[1729956083694,8.2594,169.15,169.1,2.9601]
[1729956083894,5.3,169.15,169.1,2.9601]
[1729956084095,5.3,169.15,169.08,1.196]
[1729956084294,2.9595,169.14,169.09,2.9602]
[1729956084802,5.3,169.15,169.08,1.196]
[1729956084993,5.3,169.17,169.08,1.196]
[1729956085195,5.3,169.17,169.08,6.496]
[1729956085502,8.259,169.17,169.08,6.496]
[1729956085702,5.3,169.17,169.08,6.496]
[1729956085902,2.9589,169.18,169.13,2.9596]
[1729956086097,5.3,169.19,169.08,6.496]
[1729956086404,2.9591,169.17,169.11,2.96]
[1729956086702,57.54,169.25,169.08,6.496]
[1729956086703,5.3,169.19,169.1,20.47409244]
[1729956086900,5.3,169.2,169.12,20.47409244]
[1729956087098,57.54,169.25,169.13,1.3065]
[1729956087099,5.3,169.22,169.13,1.3065]
[1729956087401,5.3,169.22,169.13,2.5048]
[1729956087804,2.9583,169.21,169.16,2.959]
[1729956088190,2.9579,169.23,169.17,2.9588]
[1729956088395,5.28,169.24,169.17,2.9588]
[1729956088895,5.28,169.24,169.16,2.9591]
[1729956089292,5.28,169.24,169.13,2.5048]
[1729956090706,2.9583,169.21,169.13,5.4643]
[1729956091011,5.28,169.24,169.13,2.5048]
[1729956091198,2.9585,169.2,169.14,2.9593]
[1729956091399,5.28,169.24,169.13,2.5048]
[1729956091901,0.9498,169.27,169.18,20.47409244]
[1729956092106,5.28,169.28,169.18,20.47409244]
[1729956092402,21.42179244,169.34,169.21,20.47409244]
[1729956092705,21.42179244,169.34,169.22,6.5255]
[1729956093407,21.42179244,169.34,169.22,7.8006]
[1729956093607,21.42179244,169.34,169.22,2.5206]
[1729956093898,21.42179244,169.34,169.24,2.9576]
[1729956094303,2.9573,169.27,169.23,5.28]
[1729956094507,21.42179244,169.34,169.22,2.5206]
[1729956094698,20.47409244,169.32,169.23,5.28]
[1729956095305,2.9574,169.26,169.23,5.28]
[1729956096110,20.47409244,169.32,169.22,5.28]
[1729956097406,21.42179244,169.34,169.22,5.28]
[1729956097797,20.47409244,169.37,169.23,20.47409244]
[1729956098108,20.47409244,169.35,169.23,22.95609244]
[1729956098404,20.47409244,169.35,169.24,5.28]
[1729956098708,5.28,169.36,169.22,5.28]
[1729956098709,20.47409244,169.32,169.22,5.28]
[1729956098908,5.28,169.31,169.22,5.28]
[1729956099207,2.9571,169.28,169.2,5.28]
[1729956099408,5.28,169.31,169.2,5.28]
[1729956100008,20.47409244,169.26,169.19,1.2639]
[1729956100208,5.28,169.25,169.15,1.308]
[1729956100395,20.47409244,169.24,169.14,1.2243]
[1729956101006,20.47409244,169.24,169.11,2.96]
[1729956101007,2.9583,169.21,169.11,2.96]
[1729956101213,2.9583,169.21,169.1,5.28]
[1729956101214,5.28,169.2,169.1,5.28]
[1729956101411,5.28,169.2,169.09,1.308]
[1729956103104,5.28,169.2,169.09,4.2682]
[1729956103815,2.9593,169.15,169.09,4.2682]
[1729956104200,5.28,169.2,169.09,1.308]
[1729956104405,6.2262,169.2,169.09,1.308]
[1729956106416,6.2262,169.2,169.1,2.9602]
[1729956107610,2.9593,169.16,169.1,2.9602]
[1729956107807,20.47409244,169.24,169.11,25.69409244]
[1729956108106,20.47409244,169.24,169.14,2.9593]
[1729956108107,5.22,169.21,169.14,2.9593]
[1729956108312,2.9586,169.19,169.14,2.9593]
[1729956108710,2.9586,169.19,169.11,25.69409244]
[1729956108711,5.22,169.21,169.13,20.47409244]
[1729956108901,2.9584,169.2,169.14,1.1973]
[1729956109206,21.42229244,169.27,169.17,2.9589]
[1729956109409,2.9581,169.23,169.17,2.9589]
[1729956109614,5.22,169.26,169.17,2.9589]
[1729956109911,2.9582,169.22,169.17,2.9589]
[1729956110112,5.22,169.25,169.15,5.22]
[1729956110314,5.22,169.25,169.16,2.9591]
[1729956111001,21.42229244,169.27,169.15,5.22]
[1729956111206,5.22,169.26,169.15,5.22]
[1729956112112,5.22,169.26,169.16,20.47409244]
[1729956112303,5.22,169.26,169.15,8.1793]
[1729956112510,5.22,169.26,169.15,5.22]
[1729956113213,5.22,169.26,169.17,2.9589]
[1729956113407,5.22,169.26,169.15,5.22]
[1729956114312,2.9583,169.21,169.16,2.9591]
[1729956114812,5.22,169.26,169.14,1.1973]
[1729956115409,2.958,169.23,169.15,2.9591]
[1729956115717,5.22,169.26,169.14,1.1973]
[1729956116106,5.22,169.26,169.17,2.9589]
[1729956116608,2.9583,169.21,169.16,2.9591]
[1729956116911,20.47409244,169.29,169.16,20.47409244]
[1729956117217,5.22,169.31,169.17,6.4677]
[1729956117721,2.9578,169.24,169.17,6.4677]
[1729956118116,2.9575,169.26,169.18,2.9587]
[1729956118315,5.22,169.27,169.17,1.2477]
[1729956118514,20.47409244,169.26,169.17,1.2477]
[1729956118721,2.9584,169.21,169.17,1.2477]
[1729956118906,20.47409244,169.26,169.14,6.4173]
[1729956119113,20.47409244,169.26,169.14,1.1973]
[1729956119318,2.9585,169.2,169.15,2.9593]
[1729956120830,5.22,169.23,169.14,1.1973]
[1729956121027,20.47409244,169.21,169.11,1.2477]
[1729956121223,2.9588,169.18,169.11,1.2477]
[1729956121429,5.22,169.19,169.11,1.2477]
[1729956121814,5.22,169.19,169.1,2.9601]
[1729956122014,20.47409244,169.18,169.09,1.3048]
[1729956122424,20.47409244,169.18,169.1,2.9601]
[1729956122625,5.22,169.19,169.09,1.3048]
[1729956122927,2.9585,169.2,169.15,2.9592]
[1729956123523,0.947,169.25,169.14,20.47409244]
[1729956123725,2.9582,169.22,169.17,2.9588]
[1729956124517,2.958,169.23,169.17,2.959]
[1729956124922,5.22,169.24,169.12,5.22]
[1729956125125,2.9587,169.19,169.14,2.9594]
[1729956126131,25.69409244,169.24,169.14,2.9594]
[1729956126328,25.69409244,169.24,169.12,5.22]
[1729956126329,2.9588,169.18,169.12,5.22]
[1729956126530,2.9588,169.18,169.13,2.9596]
[1729956126837,2.9593,169.16,169.1,6.5002]
[1729956127037,2.9593,169.16,169.11,2.9599]
[1729956127627,2.9593,169.16,169.12,2.9597]
[1729956128533,5.22,169.2,169.1,6.5002]
[1729956128729,5.22,169.2,169.11,20.47409244]
[1729956128929,5.22,169.23,169.11,20.47409244]
[1729956129129,2.9586,169.2,169.14,2.9594]
[1729956129331,2.9586,169.2,169.14,5.22]
[1729956130029,2.9586,169.2,169.16,2.9591]
[1729956130229,2.958,169.23,169.14,25.69409244]
[1729956130426,5.22,169.24,169.14,25.69409244]
[1729956130631,5.22,169.24,169.17,2.959]
[1729956131435,2.9581,169.22,169.18,2.9588]
[1729956132039,2.9586,169.19,169.14,5.22]
[1729956132238,25.69409244,169.24,169.14,5.22]
[1729956132632,2.9589,169.18,169.14,5.22]
[1729956132837,25.69409244,169.24,169.15,2.9592]
[1729956133143,2.9586,169.2,169.15,2.9592]
[1729956133938,5.22,169.24,169.15,2.9592]
[1729956134135,20.47409244,169.22,169.12,2.9598]
[1729956134341,20.47409244,169.22,169.1,6.5002]
[1729956134831,20.47409244,169.19,169.1,6.5002]
[1729956135027,5.22,169.19,169.1,6.5002]
[1729956135231,2.9588,169.18,169.12,2.9597]
[1729956135531,2.9588,169.18,169.1,6.5002]
[1729956135938,2.9588,169.18,169.13,2.9595]
[1729956136538,2.959,169.17,169.13,2.9595]
[1729956137737,5.22,169.19,169.1,6.5002]
[1729956138036,25.69409244,169.19,169.1,1.2802]
[1729956138639,2.9594,169.15,169.1,4.2404]
[1729956139233,25.69409244,169.19,169.1,4.2404]
[1729956139431,20.47409244,169.16,169.06,5.18]
[1729956139739,5.18,169.15,169.05,5.18]
[1729956140046,2.9598,169.13,169.09,2.9602]
[1729956140244,5.18,169.15,169.06,5.18]
[1729956140835,2.9599,169.12,169.08,2.9604]
[1729956141746,2.96,169.11,169.08,2.9604]
[1729956142233,2.9604,169.09,169.03,20.47409244]
[1729956142435,2.9604,169.09,169.04,5.18]
[1729956142733,2.9604,169.09,169.05,2.9609]
[1729956142933,2.9599,169.12,169.04,5.18]
[1729956143139,20.47409244,169.14,169.01,3.7498]
[1729956143342,20.47409244,169.14,169.02,5.18]
[1729956143535,20.47409244,169.11,169.02,5.18]
[1729956143745,5.18,169.1,169.01,3.7498]
[1729956143935,5.18,169.1,169.02,2.9614]
[1729956144137,2.961,169.06,169.02,2.9614]
[1729956145142,5.18,169.1,169.02,2.9614]
[1729956145342,5.18,169.1,169.0,5.18]
[1729956145343,20.47409244,169.08,168.97,5.18]
[1729956146043,2.9611,169.05,169.0,2.9619]
[1729956146346,25.65409244,169.06,168.95,8.9759]
[1729956146744,2.9619,169.01,168.96,2.9625]
[1729956146935,2.9619,169.01,168.95,3.7959]
[1729956147237,25.65409244,169.06,168.95,3.7959]
[1729956147439,25.65409244,169.06,168.97,2.9624]
[1729956147648,25.65409244,169.06,168.95,3.7959]
[1729956148142,2.9622,168.99,168.95,5.5638]
[1729956148348,5.18,169.02,168.92,174.39217]
[1729956148646,20.47409244,169.0,168.92,177.35547]
[1729956149140,20.47409244,169.0,168.92,174.39217]
[1729956150043,0.9484,169.01,168.92,174.39217]
[1729956151035,20.47409244,169.03,168.92,174.39217]
[1729956151236,5.18,169.04,168.92,200.04626244]
[1729956151442,5.18,169.03,168.92,200.04626244]
[1729956151642,8.1415,169.03,168.97,2.9624]
[1729956152648,2.9616,169.02,168.97,2.9625]
[1729956152842,5.18,169.03,168.92,179.57217]
[1729956153842,2.962,169.0,168.94,2.9628]
[1729956154251,5.18,169.03,168.94,2.9628]
[1729956154554,2.9619,169.01,168.94,2.9628]
[1729956154755,5.18,169.03,168.94,2.9628]
[1729956155655,2.962,169.0,168.94,2.9628]
[1729956156557,2.962,169.0,168.92,179.57217]
[1729956156745,2.962,169.0,168.95,2.9627]
[1729956157850,5.18,169.03,168.92,179.57217]
[1729956157851,5.18,169.04,168.92,200.04626244]
[1729956158348,2.9615,169.03,168.97,2.9623]
[1729956158754,5.18,169.04,168.93,5.18]
[1729956159451,8.1414,169.04,168.96,2.9626]
[1729956159653,8.1414,169.04,168.93,5.18]
[1729956159957,5.18,169.05,169.01,2.9617]
[1729956160160,0.9488,169.1,168.97,25.65409244]
[1729956160345,5.18,169.07,168.98,6.4519]
[1729956160550,5.18,169.1,168.98,6.4519]
[1729956161051,2.9605,169.09,168.98,6.4519]
[1729956161252,5.18,169.1,169.0,20.47409244]
[1729956161756,5.18,169.1,169.06,2.9607]
[1729956161957,5.18,169.1,169.02,5.18]
[1729956162254,8.1403,169.1,169.05,2.961]
[1729956163763,5.18,169.1,169.02,5.18]
[1729956163959,5.18,169.1,168.98,1.2719]
[1729956163960,2.9607,169.08,169.03,2.9613]
[1729956165362,2.9612,169.05,169.0,2.9619]
[1729956165566,25.65409244,169.1,168.99,5.18]
[1729956166260,25.65409244,169.1,169.01,2.9617]
[1729956166763,2.961,169.06,169.01,2.9617]
[1729956167761,25.65409244,169.1,168.98,1.2719]
[1729956168354,2.9611,169.05,169.0,2.9619]
[1729956168951,2.9615,169.03,168.98,4.2341]
[1729956169258,20.47409244,169.05,168.96,2.4079]
[1729956169661,20.47409244,169.05,168.97,2.9623]
[1729956170063,2.9616,169.02,168.97,2.9623]
[1729956170752,2.9618,169.01,168.97,2.9623]
[1729956170952,2.9618,169.01,168.96,5.3705]
[1729956172057,2.9618,169.01,168.96,2.4079]
[1729956172256,20.47409244,169.05,168.97,2.9624]
[1729956172457,2.9616,169.02,168.97,2.9624]
[1729956173759,2.9618,169.01,168.97,2.9624]
[1729956174356,20.47409244,169.05,168.96,2.4079]
[1729956174556,2.962,169.0,168.96,4.1795]
[1729956175568,5.08,169.02,168.96,1.2169]
[1729956175868,2.9623,168.99,168.96,1.2169]
[1729956176770,2.9623,168.98,168.95,2.9628]
[1729956177168,5.08,169.02,168.93,6.3567]
[1729956177572,2.9619,169.01,168.97,2.9623]
[1729956178158,20.47409244,169.05,168.94,20.47409244]
[1729956178159,5.08,169.05,168.94,20.47409244]
[1729956178360,5.08,169.05,168.95,12.80061715]
[1729956179364,2.9616,169.02,168.98,2.9622]
[1729956180267,2.9616,169.02,168.93,6.3567]
[1729956180268,2.962,169.0,168.96,2.9626]
[1729956180672,12.80061715,169.03,168.93,19.15731715]
[1729956181661,17.88061715,169.05,168.95,12.80061715]
[1729956181866,17.88061715,169.05,168.96,1.2223]
[1729956182063,2.9614,169.03,168.96,1.2223]
[1729956182269,2.9614,169.03,168.99,2.962]
[1729956182973,17.88061715,169.05,168.97,1.2403]
[1729956182974,5.08,169.05,168.98,12.80061715]
[1729956183276,12.80061715,169.1,169.0,12.80061715]
[1729956183572,12.80061715,169.1,169.01,6.327]
[1729956183977,2.9604,169.09,169.04,2.9611]
[1729956184370,12.80061715,169.15,169.05,17.88061715]
[1729956184571,12.80061715,169.15,169.08,2.9605]
[1729956184777,12.80061715,169.15,169.06,1.3135]
[1729956184977,5.08,169.16,169.06,1.3135]
[1729956184978,12.80061715,169.13,169.06,1.3135]
[1729956185670,2.9602,169.11,169.06,4.2743]
[1729956186468,20.46473654,169.14,169.06,1.3135]
[1729956186672,2.9603,169.1,169.06,1.3135]
[1729956187271,2.9603,169.1,169.05,2.961]
[1729956187272,20.46473654,169.09,168.92,174.39217]
[1729956187472,20.46473654,169.06,168.97,2.5104]
[1729956187673,25.54473654,169.06,168.97,2.5104]
[1729956188279,25.54473654,169.06,168.98,2.9622]
[1729956188280,2.9616,169.02,168.98,2.9622]
[1729956190177,2.9616,169.02,168.97,5.4728]
[1729956191081,2.9618,169.01,168.97,2.5104]
[1729956191280,25.54473654,169.06,168.97,2.5104]
[1729956191478,20.46473654,169.02,168.94,5.08]
[1729956191681,2.962,169.0,168.95,2.9628]
[1729956191982,20.46473654,169.02,168.93,7.5788]
[1729956192590,2.9619,169.01,168.96,2.9625]
[1729956193189,20.46473654,169.02,168.96,2.9625]
[1729956193386,2.9622,168.99,168.95,2.9628]
[1729956193582,20.46473654,169.02,168.93,7.5788]
[1729956193784,20.46473654,169.02,168.93,2.4988]
[1729956194087,20.46473654,169.02,168.94,5.08]
[1729956195390,2.9621,168.99,168.96,2.9626]
[1729956195886,20.46473654,169.02,168.96,2.9626]
[1729956195887,2.962,169.0,168.96,2.9626]
[1729956196396,2.9618,169.01,168.97,2.9623]
[1729956197292,2.962,169.0,168.97,2.9623]
[1729956197791,2.962,169.0,168.94,5.08]
[1729956197792,20.46473654,169.02,168.95,2.9627]
[1729956197991,2.9623,168.99,168.95,2.9627]
[1729956198288,20.46473654,169.02,168.95,2.9627]
[1729956198495,2.9619,169.0,168.95,2.9627]
[1729956198694,20.46473654,169.02,168.95,2.9627]
[1729956199894,2.9622,168.99,168.95,2.9627]
[1729956200197,20.46473654,169.02,168.94,5.08]
[1729956200496,20.46473654,169.05,168.97,2.9624]
[1729956200684,20.46473654,169.05,168.94,5.08]
[1729956200892,2.9616,169.02,168.98,2.9623]
[1729956202900,2.9618,169.01,168.97,2.9624]
[1729956203800,20.46473654,169.03,168.93,2.4988]
[1729956203999,2.9622,168.99,168.95,2.9627]
[1729956209399,2.9632,168.93,168.92,174.39217]
[1729956210193,2.9632,168.93,168.92,53.85762894]
[1729956210395,15.77122123,168.93,168.92,53.85762894]
[1729956210598,15.77122123,168.93,168.92,23.92003945]
[1729956211804,2.9653,168.81,168.76,4.94]
[1729956212498,25.45343953,168.85,168.76,4.94]
[1729956212699,4.94,168.85,168.76,4.94]
[1729956213300,4.94,168.87,168.76,25.45343953]
[1729956213505,4.94,168.89,168.76,25.45343953]
[1729956213991,2.9642,168.88,168.83,2.9649]
[1729956214191,20.51343953,168.93,168.8,4.94]
[1729956214395,4.94,168.92,168.8,4.94]
[1729956215304,2.9639,168.9,168.84,2.9646]
[1729956216003,4.94,168.92,168.8,4.94]
[1729956216605,2.9637,168.9,168.84,2.9646]
[1729956217604,2.9639,168.89,168.84,2.9646]
[1729956224113,2.9643,168.87,168.82,2.9649]
[1729956224300,4.94,168.88,168.77,4.94]
[1729956224714,2.9648,168.84,168.79,2.9655]
[1729956225207,20.51343953,168.85,168.75,3.8022]
[1729956225414,4.94,168.84,168.75,3.8022]
[1729956225806,2.9654,168.81,168.76,2.966]
[1729956227008,2.9655,168.8,168.76,2.966]
[1729956232318,2.9658,168.79,168.75,6.7685]
[1729956232718,4.94,168.84,168.75,3.8022]
[1729956232924,3.00952722,168.92,168.76,4.9]
[1729956233123,4.9,168.91,168.76,4.9]
[1729956233522,2.9648,168.84,168.8,2.9654]
[1729956234818,4.9,168.86,168.8,2.9654]
[1729956235019,2.9647,168.85,168.8,2.9654]
[1729956235220,4.9,168.86,168.8,2.9654]
[1729956236227,2.9648,168.84,168.8,2.9654]
[1729956237531,2.89414302,168.92,168.81,2.9651]
[1729956237532,4.9,168.87,168.81,2.9651]
[1729956237827,4.9,168.88,168.76,4.9]
[1729956238025,2.9649,168.84,168.79,2.9655]
[1729956238827,2.9652,168.82,168.76,2.9661]
[1729956239022,4.9,168.84,168.75,3.8022]
[1729956239821,4.9,168.84,168.75,2.5724]
[1729956240129,4.9,168.84,168.72,4.9]
[1729956240330,2.9659,168.78,168.73,2.9666]
[1729956240721,2.9665,168.75,168.69,1.2524]
[1729956240926,4.9,168.78,168.69,6.1524]
[1729956241327,7.8658,168.78,168.71,2.9669]
[1729956241532,7.8658,168.78,168.72,2.5597]
[1729956241828,2.9658,168.78,168.72,2.5597]
[1729956242022,7.8654,168.81,168.72,2.5597]
[1729956242223,4.9,168.81,168.72,2.5597]
[1729956242631,2.9659,168.78,168.73,2.9665]
[1729956242829,2.92143226,168.89,168.72,2.5597]
[1729956243026,4.9,168.88,168.72,2.5597]
[1729956243222,2.9649,168.84,168.75,2.9663]
[1729956243426,4.9,168.83,168.75,2.9663]
[1729956243629,4.9,168.82,168.75,2.9663]
[1729956243831,2.9654,168.81,168.75,2.9663]
[1729956244226,4.9,168.82,168.75,2.9663]
[1729956244529,2.9655,168.8,168.75,2.9663]
[1729956245424,2.9655,168.8,168.76,2.9661]
[1729956246531,2.95832019,168.86,168.72,2.5597]
[1729956246735,4.9,168.85,168.79,2.9655]
[1729956247525,2.9649,168.83,168.79,2.9655]
[1729956248933,2.9649,168.83,168.78,2.9658]
[1729956249233,4.9,168.85,168.76,1.284]
[1729956250338,4.9,168.85,168.75,4.9]
[1729956251437,4.9,168.85,168.73,6.1483]
[1729956251631,4.9,168.85,168.73,1.2483]
[1729956251833,2.9658,168.79,168.74,2.9664]
[1729956252026,2.95078032,168.89,168.72,7.4597]
[1729956252027,4.9,168.81,168.72,2.5597]
[1729956252236,4.9,168.8,168.72,2.5597]
[1729956252438,4.9,168.79,168.72,2.5597]
[1729956253136,2.966,168.77,168.72,5.5264]
[1729956253736,4.9,168.79,168.72,5.5264]
[1729956253936,2.9664,168.75,168.72,2.5597]
[1729956254643,4.9,168.79,168.72,2.5597]
[1729956254942,8.90886115,168.88,168.72,7.4597]
[1729956254943,2.98046115,168.88,168.72,7.4597]
[1729956255137,4.9,168.87,168.77,2.9659]
[1729956255337,4.9,168.86,168.72,7.4597]
[1729956255840,2.9656,168.79,168.72,7.4597]
[1729956256145,2.9656,168.79,168.74,2.9663]
[1729956256354,2.9662,168.76,168.72,2.5597]
[1729956256640,4.9,168.82,168.72,2.5597]
[1729956258042,2.9663,168.75,168.72,2.5597]
[1729956259142,2.9656,168.79,168.73,2.9667]
[1729956259339,5.9284,168.88,168.72,2.5597]
[1729956259537,4.88,168.87,168.72,2.5597]
[1729956259844,4.88,168.87,168.73,4.88]
[1729956260145,2.9656,168.8,168.73,4.88]
[1729956260342,2.9656,168.8,168.74,1.271]
[1729956260529,57.58,168.94,168.74,1.271]
[1729956260734,4.88,168.93,168.74,1.271]
[1729956260930,4.88,168.93,168.74,4.16960101]
[1729956261944,4.88,168.93,168.74,1.271]
[1729956262641,4.88,168.93,168.75,4.88]
[1729956263238,2.9641,168.88,168.76,2.966]
[1729956263436,4.88,168.87,168.75,4.88]
[1729956263836,2.965,168.83,168.78,2.9657]
[1729956264038,4.88,168.87,168.75,4.88]
[1729956264837,4.88,168.87,168.76,2.9661]
[1729956265039,4.88,168.87,168.75,4.88]
[1729956265341,4.88,168.87,168.73,4.88]
[1729956265537,4.88,168.87,168.72,2.5597]
[1729956267341,2.9658,168.78,168.72,2.5597]
[1729956268145,2.9665,168.75,168.7,4.88]
[1729956268339,2.9665,168.75,168.66,1.2471]
[1729956268340,2.9665,168.75,168.69,4.88]
[1729956269241,4.88,168.81,168.69,4.88]
[1729956269842,2.9659,168.78,168.69,4.88]
[1729956270042,4.88,168.81,168.69,4.88]
[1729956270639,2.9666,168.74,168.69,7.8474]
[1729956270838,4.88,168.77,168.69,2.9674]
[1729956271548,2.9669,168.72,168.67,10.3921]
[1729956271935,2.9672,168.7,168.67,2.5444]
[1729956272842,2.9671,168.71,168.65,2.968]
[1729956273043,4.88,168.73,168.65,2.968]
[1729956273546,4.88,168.73,168.63,4.88]
[1729956274437,2.9677,168.67,168.63,7.8483]
[1729956275739,4.88,168.73,168.62,3.7297]